[Event "Early-Titled-Tuesday-Blitz-September-12-2023"]
[Site "Chess.com"]
[Date "2023.09.12"]
[Round "4"]
[White "platy3"]
[Black "sergeikim"]
[Result "1-0"]
[WhiteElo "2909"]
[BlackElo "2581"]
[TimeControl "180+1"]
[EndTime "8:40:06 PDT"]
[Termination "platy3 won on time"]

1. e4 {[%clk 0:03:00.9]} 1... e5 {[%clk 0:02:59.9]} 2. Nf3 {[%clk 0:02:51.4]}
2... Nc6 {[%clk 0:02:59.9]} 3. Bc4 {[%clk 0:02:51.1]} 3... Bc5 {[%clk
0:02:59.2]} 4. c3 {[%clk 0:02:51.4]} 4... Nf6 {[%clk 0:02:59.4]} 5. d4 {[%clk
0:02:51.9]} 5... exd4 {[%clk 0:02:59.5]} 6. b4 {[%clk 0:02:52.7]} 6... Bb6
{[%clk 0:02:59.3]} 7. e5 {[%clk 0:02:28.8]} 7... d5 {[%clk 0:02:59]} 8. exf6
{[%clk 0:02:27.2]} 8... dxc4 {[%clk 0:02:59.4]} 9. Qe2+ {[%clk 0:02:19.6]} 9...
Be6 {[%clk 0:02:58.7]} 10. b5 {[%clk 0:02:20]} 10... Na5 {[%clk 0:02:51.9]} 11.
fxg7 {[%clk 0:02:13.7]} 11... Rg8 {[%clk 0:02:52.1]} 12. cxd4 {[%clk 0:01:59.5]}
12... Rxg7 {[%clk 0:02:49.4]} 13. O-O {[%clk 0:01:58.4]} 13... Qd7 {[%clk
0:01:59.7]} 14. Nc3 {[%clk 0:01:56.3]} 14... O-O-O {[%clk 0:01:57.6]} 15. Bf4
{[%clk 0:01:50.6]} 15... Rdg8 {[%clk 0:01:50.3]} 16. Bg3 {[%clk 0:01:49.9]}
16... Bg4 {[%clk 0:01:45.4]} 17. Rad1 {[%clk 0:01:43.9]} 17... h5 {[%clk
0:01:44.3]} 18. Rfe1 {[%clk 0:01:32.2]} 18... Qf5 {[%clk 0:01:33.1]} 19. Kh1
{[%clk 0:01:08.7]} 19... Bxf3 {[%clk 0:01:20.6]} 20. Qxf3 {[%clk 0:01:09.6]}
20... Qxf3 {[%clk 0:01:20.9]} 21. gxf3 {[%clk 0:01:10.5]} 21... f6 {[%clk
0:01:16.8]} 22. Nd5 {[%clk 0:01:03.8]} 22... Rf8 {[%clk 0:01:11.7]} 23. Bh4
{[%clk 0:00:58.9]} 23... Rgf7 {[%clk 0:01:10.6]} 24. Re6 {[%clk 0:00:56.7]}
24... f5 {[%clk 0:01:08.2]} 25. Nc3 {[%clk 0:00:53.6]} 25... Rd7 {[%clk
0:01:06.1]} 26. Bf6 {[%clk 0:00:47.9]} 26... c6 {[%clk 0:01:04.2]} 27. Be5
{[%clk 0:00:45.2]} 27... Rfd8 {[%clk 0:00:58.7]} 28. bxc6 {[%clk 0:00:39.4]}
28... Nxc6 {[%clk 0:00:58.2]} 29. d5 {[%clk 0:00:34.1]} 29... Nxe5 {[%clk
0:00:55.3]} 30. Rxe5 {[%clk 0:00:35]} 30... Ba5 {[%clk 0:00:55.6]} 31. Ne2
{[%clk 0:00:24.4]} 31... b5 {[%clk 0:00:53.7]} 32. d6 {[%clk 0:00:20.4]} 32...
a6 {[%clk 0:00:52.4]} 33. a4 {[%clk 0:00:20.6]} 33... c3 {[%clk 0:00:44.3]} 34.
axb5 {[%clk 0:00:20.4]} 34... Rxd6 {[%clk 0:00:44.4]} 35. Rxd6 {[%clk
0:00:13.9]} 35... Rxd6 {[%clk 0:00:44.4]} 36. bxa6 {[%clk 0:00:14.8]} 36... Rxa6
{[%clk 0:00:41.2]} 37. Nxc3 {[%clk 0:00:11.5]} 37... Bxc3 {[%clk 0:00:38.7]} 38.
Rc5+ {[%clk 0:00:11.7]} 38... Kd7 {[%clk 0:00:39.1]} 39. Rxc3 {[%clk 0:00:12.1]}
39... Ke6 {[%clk 0:00:39.5]} 40. Kg2 {[%clk 0:00:11]} 40... Kf6 {[%clk
0:00:39.2]} 41. Rc8 {[%clk 0:00:10.5]} 41... Kg5 {[%clk 0:00:37.5]} 42. Rg8+
{[%clk 0:00:10.2]} 42... Kf6 {[%clk 0:00:35.1]} 43. h4 {[%clk 0:00:10.1]} 43...
Ra4 {[%clk 0:00:34.9]} 44. Kg3 {[%clk 0:00:10.1]} 44... f4+ {[%clk 0:00:31.7]}
45. Kh3 {[%clk 0:00:09.7]} 45... Ra5 {[%clk 0:00:31.6]} 46. Rf8+ {[%clk
0:00:07.9]} 46... Ke5 {[%clk 0:00:30.7]} 47. Rf7 {[%clk 0:00:08]} 47... Rb5
{[%clk 0:00:29.9]} 48. Rg7 {[%clk 0:00:07.6]} 48... Kf6 {[%clk 0:00:29.2]} 49.
Rg8 {[%clk 0:00:07.9]} 49... Ra5 {[%clk 0:00:28.2]} 50. Kg2 {[%clk 0:00:08.1]}
50... Rb5 {[%clk 0:00:27.3]} 51. Rf8+ {[%clk 0:00:08.5]} 51... Ke5 {[%clk
0:00:27]} 52. Rf7 {[%clk 0:00:08.1]} 52... Ra5 {[%clk 0:00:26.6]} 53. Kf1 {[%clk
0:00:07.8]} 53... Rb5 {[%clk 0:00:25]} 54. Rc7 {[%clk 0:00:05.2]} 54... Ra5
{[%clk 0:00:23.7]} 55. Rc2 {[%clk 0:00:04.6]} 55... Kf6 {[%clk 0:00:20.8]} 56.
Ke2 {[%clk 0:00:05.1]} 56... Ra1 {[%clk 0:00:19.6]} 57. Rc6+ {[%clk 0:00:04.7]}
57... Kg7 {[%clk 0:00:17.9]} 58. Rc5 {[%clk 0:00:04.6]} 58... Kg6 {[%clk
0:00:16.8]} 59. Rg5+ {[%clk 0:00:05]} 59... Kh6 {[%clk 0:00:17]} 60. Rf5 {[%clk
0:00:05.5]} 60... Ra4 {[%clk 0:00:16.6]} 61. Rf6+ {[%clk 0:00:06]} 61... Kg7
{[%clk 0:00:16.1]} 62. Rb6 {[%clk 0:00:06.9]} 62... Rc4 {[%clk 0:00:14.9]} 63.
Kd3 {[%clk 0:00:07]} 63... Rc1 {[%clk 0:00:14.6]} 64. Ke4 {[%clk 0:00:07]} 64...
Rh1 {[%clk 0:00:14.3]} 65. Kxf4 {[%clk 0:00:07.2]} 65... Rxh4+ {[%clk
0:00:14.8]} 66. Kg5 {[%clk 0:00:05.2]} 66... Rh2 {[%clk 0:00:14.4]} 67. Rb7+
{[%clk 0:00:05.6]} 67... Kf8 {[%clk 0:00:12.5]} 68. Kf6 {[%clk 0:00:05.9]} 68...
Kg8 {[%clk 0:00:12.6]} 69. Rb2 {[%clk 0:00:04.8]} 69... Rh3 {[%clk 0:00:11.4]}
70. f4 {[%clk 0:00:04.6]} 70... Rf3 {[%clk 0:00:09.7]} 71. f5 {[%clk 0:00:05.1]}
71... h4 {[%clk 0:00:09.8]} 72. Kg6 {[%clk 0:00:05.7]} 72... Kf8 {[%clk
0:00:04.5]} 73. f6 {[%clk 0:00:06.4]} 73... Ke8 {[%clk 0:00:04.2]} 74. f7+
{[%clk 0:00:06.4]} 74... Ke7 {[%clk 0:00:04]} 75. Re2+ {[%clk 0:00:03.8]} 75...
Kd7 {[%clk 0:00:03]} 76. Re8 {[%clk 0:00:04.3]} 76... h3 {[%clk 0:00:01.2]} 77.
f8=Q {[%clk 0:00:04.6]} 1-0

[Event "Early-Titled-Tuesday-Blitz-September-12-2023"]
[Site "Chess.com"]
[Date "2023.09.12"]
[Round "4"]
[White "maracayo"]
[Black "Saif_Malek04"]
[Result "1-0"]
[WhiteElo "2445"]
[BlackElo "2624"]
[TimeControl "180+1"]
[EndTime "8:40:06 PDT"]
[Termination "maracayo won by checkmate"]

1. e4 {[%clk 0:03:00.9]} 1... e5 {[%clk 0:02:59.4]} 2. Nf3 {[%clk 0:03:00.1]}
2... Nc6 {[%clk 0:02:59.7]} 3. Bb5 {[%clk 0:02:59.1]} 3... a6 {[%clk 0:02:59.2]}
4. Ba4 {[%clk 0:02:58.3]} 4... Nf6 {[%clk 0:02:59.2]} 5. O-O {[%clk 0:02:58]}
5... Be7 {[%clk 0:02:59.4]} 6. Re1 {[%clk 0:02:57.2]} 6... b5 {[%clk 0:02:59.4]}
7. Bb3 {[%clk 0:02:57.1]} 7... O-O {[%clk 0:03:00.3]} 8. h3 {[%clk 0:02:55.9]}
8... d6 {[%clk 0:02:57.8]} 9. c3 {[%clk 0:02:54.7]} 9... Na5 {[%clk 0:02:57.8]}
10. Bc2 {[%clk 0:02:52.4]} 10... c5 {[%clk 0:02:58.2]} 11. d4 {[%clk 0:02:50.1]}
11... Qc7 {[%clk 0:02:57.6]} 12. dxe5 {[%clk 0:02:47.4]} 12... dxe5 {[%clk
0:02:57.1]} 13. Nbd2 {[%clk 0:02:48.3]} 13... Rd8 {[%clk 0:02:52.5]} 14. Qe2
{[%clk 0:02:47.3]} 14... Bf8 {[%clk 0:02:44.3]} 15. b3 {[%clk 0:02:45.6]} 15...
g6 {[%clk 0:02:43.9]} 16. Nf1 {[%clk 0:02:44.1]} 16... Bg7 {[%clk 0:02:44]} 17.
Bg5 {[%clk 0:02:39.2]} 17... h6 {[%clk 0:02:42.3]} 18. Bxf6 {[%clk 0:02:38.1]}
18... Bxf6 {[%clk 0:02:43.2]} 19. Ne3 {[%clk 0:02:38.2]} 19... Bb7 {[%clk
0:02:42.2]} 20. Rad1 {[%clk 0:02:26]} 20... h5 {[%clk 0:02:29.5]} 21. Nd5 {[%clk
0:02:22.4]} 21... Bxd5 {[%clk 0:02:22.4]} 22. exd5 {[%clk 0:02:18.2]} 22... Re8
{[%clk 0:01:52.5]} 23. d6 {[%clk 0:01:42.5]} 23... Qb6 {[%clk 0:01:30.4]} 24. d7
{[%clk 0:01:35.2]} 24... Re6 {[%clk 0:01:30]} 25. Nd2 {[%clk 0:01:27.9]} 25...
Rd8 {[%clk 0:01:27.5]} 26. Ne4 {[%clk 0:01:26.1]} 26... Bg7 {[%clk 0:01:22.4]}
27. Qe3 {[%clk 0:01:05.4]} 27... Nb7 {[%clk 0:01:20.1]} 28. b4 {[%clk
0:00:58.6]} 28... Bf8 {[%clk 0:01:03.4]} 29. Ng5 {[%clk 0:00:39.3]} 29... Re7
{[%clk 0:00:59.1]} 30. Bb3 {[%clk 0:00:37.5]} 30... Bh6 {[%clk 0:00:37.8]} 31.
f4 {[%clk 0:00:19.6]} 31... Bxg5 {[%clk 0:00:24.3]} 32. fxg5 {[%clk 0:00:20.5]}
32... Rdxd7 {[%clk 0:00:20.6]} 33. Rxd7 {[%clk 0:00:21.4]} 33... Rxd7 {[%clk
0:00:21.5]} 34. Qxe5 {[%clk 0:00:20.7]} 34... cxb4+ {[%clk 0:00:21.4]} 35. Kh1
{[%clk 0:00:19.4]} 35... Qd8 {[%clk 0:00:15.4]} 36. Qe8+ {[%clk 0:00:17.9]}
36... Kg7 {[%clk 0:00:13.8]} 37. cxb4 {[%clk 0:00:17.5]} 37... Nd6 {[%clk
0:00:12.2]} 38. Qe5+ {[%clk 0:00:16.6]} 38... Kg8 {[%clk 0:00:11.6]} 39. Rd1
{[%clk 0:00:16]} 39... Nf5 {[%clk 0:00:10.6]} 40. Rxd7 {[%clk 0:00:16.9]} 40...
Qxd7 {[%clk 0:00:11.5]} 41. Qf6 {[%clk 0:00:15.8]} 41... Qd6 {[%clk 0:00:10.9]}
42. Qxd6 {[%clk 0:00:14]} 42... Nxd6 {[%clk 0:00:10.7]} 43. Bd5 {[%clk
0:00:14.1]} 43... Kf8 {[%clk 0:00:10.9]} 44. g4 {[%clk 0:00:14.6]} 44... hxg4
{[%clk 0:00:10.3]} 45. hxg4 {[%clk 0:00:15.5]} 45... Ke7 {[%clk 0:00:11.1]} 46.
Kg2 {[%clk 0:00:15.9]} 46... Nc4 {[%clk 0:00:07.5]} 47. Kf3 {[%clk 0:00:16.8]}
47... Ne5+ {[%clk 0:00:07.3]} 48. Kf4 {[%clk 0:00:15.7]} 48... Nd7 {[%clk
0:00:07.8]} 49. Bb7 {[%clk 0:00:12.1]} 49... Nb8 {[%clk 0:00:07.8]} 50. Ke5
{[%clk 0:00:12.3]} 50... Ke8 {[%clk 0:00:04.4]} 51. Kd6 {[%clk 0:00:11]} 51...
Kd8 {[%clk 0:00:04.7]} 52. a3 {[%clk 0:00:10.5]} 52... Ke8 {[%clk 0:00:05.1]}
53. Kc7 {[%clk 0:00:10.2]} 53... Nd7 {[%clk 0:00:05.7]} 54. Bc6 {[%clk
0:00:10.2]} 54... Ke7 {[%clk 0:00:05.6]} 55. Bxd7 {[%clk 0:00:10.2]} 55... f5
{[%clk 0:00:05.8]} 56. gxf6+ {[%clk 0:00:11.1]} 56... Kxf6 {[%clk 0:00:06.6]}
57. Bc8 {[%clk 0:00:11.4]} 57... Kg5 {[%clk 0:00:07.2]} 58. Kb6 {[%clk
0:00:11.4]} 58... Kf4 {[%clk 0:00:07.8]} 59. Kxa6 {[%clk 0:00:10.9]} 59... g5
{[%clk 0:00:08.7]} 60. Kxb5 {[%clk 0:00:10.9]} 60... Ke4 {[%clk 0:00:09.6]} 61.
a4 {[%clk 0:00:11.5]} 61... Kd4 {[%clk 0:00:10.5]} 62. a5 {[%clk 0:00:12.1]}
62... Ke3 {[%clk 0:00:10.1]} 63. a6 {[%clk 0:00:13]} 63... Kf4 {[%clk
0:00:10.9]} 64. a7 {[%clk 0:00:13.4]} 64... Kg3 {[%clk 0:00:11.8]} 65. a8=Q
{[%clk 0:00:13.7]} 65... Kh4 {[%clk 0:00:12.7]} 66. Qe4 {[%clk 0:00:13.2]} 66...
Kg3 {[%clk 0:00:13.2]} 67. Qf5 {[%clk 0:00:13.3]} 67... Kh4 {[%clk 0:00:14.1]}
68. Kc5 {[%clk 0:00:13.3]} 68... Kg3 {[%clk 0:00:14.8]} 69. Kd4 {[%clk
0:00:12.8]} 69... Kg2 {[%clk 0:00:15]} 70. Qxg5 {[%clk 0:00:12.1]} 70... Kg3
{[%clk 0:00:15.9]} 71. Ke4 {[%clk 0:00:11.6]} 71... Kh3 {[%clk 0:00:16.8]} 72.
Qe3+ {[%clk 0:00:09.2]} 72... Kh4 {[%clk 0:00:17]} 73. g5 {[%clk 0:00:06.9]}
73... Kh5 {[%clk 0:00:17.1]} 74. Qh3+ {[%clk 0:00:05.4]} 74... Kg6 {[%clk
0:00:17.8]} 75. Qg4 {[%clk 0:00:06.3]} 75... Kg7 {[%clk 0:00:18]} 76. Qe6 {[%clk
0:00:07.2]} 76... Kh7 {[%clk 0:00:18.2]} 77. Kf5 {[%clk 0:00:06.5]} 77... Kg7
{[%clk 0:00:18.6]} 78. Qe7+ {[%clk 0:00:06.7]} 78... Kg8 {[%clk 0:00:17.1]} 79.
Kg6 {[%clk 0:00:07.6]} 79... Kh8 {[%clk 0:00:18]} 80. Qg7# {[%clk 0:00:07]} 1-0

[Event "Early-Titled-Tuesday-Blitz-September-12-2023"]
[Site "Chess.com"]
[Date "2023.09.12"]
[Round "4"]
[White "Vladimir_Zakhartsov"]
[Black "LoydBlankenship"]
[Result "1-0"]
[WhiteElo "2893"]
[BlackElo "2636"]
[TimeControl "180+1"]
[EndTime "8:40:10 PDT"]
[Termination "Vladimir_Zakhartsov won on time"]

1. d4 {[%clk 0:02:56.3]} 1... Nf6 {[%clk 0:03:00.1]} 2. c4 {[%clk 0:02:56.2]}
2... g6 {[%clk 0:03:00.6]} 3. Nc3 {[%clk 0:02:55.7]} 3... Bg7 {[%clk 0:03:01.3]}
4. e4 {[%clk 0:02:55.7]} 4... O-O {[%clk 0:03:01.6]} 5. Be3 {[%clk 0:02:55]}
5... d6 {[%clk 0:03:02.1]} 6. h3 {[%clk 0:02:55.2]} 6... a6 {[%clk 0:02:59.3]}
7. Nf3 {[%clk 0:02:52.8]} 7... c6 {[%clk 0:02:59.3]} 8. Bd3 {[%clk 0:02:52.7]}
8... b5 {[%clk 0:02:59.5]} 9. O-O {[%clk 0:02:53]} 9... Bb7 {[%clk 0:02:58.9]}
10. Re1 {[%clk 0:02:49.3]} 10... Nfd7 {[%clk 0:02:34]} 11. a3 {[%clk 0:02:47.1]}
11... bxc4 {[%clk 0:02:23.9]} 12. Bxc4 {[%clk 0:02:46.9]} 12... Nb6 {[%clk
0:02:24.2]} 13. Ba2 {[%clk 0:02:43.7]} 13... N8d7 {[%clk 0:02:23.9]} 14. Bf4
{[%clk 0:02:37]} 14... c5 {[%clk 0:02:14.9]} 15. Be3 {[%clk 0:02:29]} 15... Rc8
{[%clk 0:02:13.7]} 16. Rc1 {[%clk 0:02:26.9]} 16... h6 {[%clk 0:01:56.4]} 17.
Qd2 {[%clk 0:02:25.6]} 17... Kh7 {[%clk 0:01:56.2]} 18. Rcd1 {[%clk 0:02:07.6]}
18... cxd4 {[%clk 0:01:29.4]} 19. Bxd4 {[%clk 0:02:05.7]} 19... Nc4 {[%clk
0:01:18]} 20. Bxc4 {[%clk 0:01:41.8]} 20... Rxc4 {[%clk 0:01:17.7]} 21. Bxg7
{[%clk 0:01:41.4]} 21... Kxg7 {[%clk 0:01:18.6]} 22. Nd5 {[%clk 0:01:36.5]}
22... Nc5 {[%clk 0:00:51.8]} 23. Nd4 {[%clk 0:01:17.6]} 23... Nxe4 {[%clk
0:00:46.6]} 24. Rxe4 {[%clk 0:01:13.7]} 24... Bxd5 {[%clk 0:00:46.7]} 25. Rh4
{[%clk 0:01:13.8]} 25... Rh8 {[%clk 0:00:36.4]} 26. b3 {[%clk 0:00:47.1]} 26...
Rc7 {[%clk 0:00:29.8]} 27. Nf5+ {[%clk 0:00:38.6]} 27... gxf5 {[%clk 0:00:29.5]}
28. Qxd5 {[%clk 0:00:39.3]} 28... Rc5 {[%clk 0:00:23.3]} 29. Qd4+ {[%clk
0:00:36.7]} 29... f6 {[%clk 0:00:22.5]} 30. b4 {[%clk 0:00:32.9]} 30... Re5
{[%clk 0:00:18.7]} 31. Qd3 {[%clk 0:00:32.1]} 31... Qd7 {[%clk 0:00:18.1]} 32.
Qxa6 {[%clk 0:00:30.4]} 32... Qe6 {[%clk 0:00:14]} 33. Qa7 {[%clk 0:00:15]}
33... Kf7 {[%clk 0:00:12.1]} 34. Qd4 {[%clk 0:00:12.7]} 34... Rc8 {[%clk
0:00:11.7]} 35. Rxh6 {[%clk 0:00:12.1]} 35... Re1+ {[%clk 0:00:11.7]} 36. Kh2
{[%clk 0:00:12.1]} 36... Rxd1 {[%clk 0:00:11.6]} 37. Qxd1 {[%clk 0:00:12.7]}
37... Qe5+ {[%clk 0:00:12.2]} 38. g3 {[%clk 0:00:13.3]} 38... Rc3 {[%clk
0:00:12.8]} 39. Rh7+ {[%clk 0:00:12.7]} 39... Ke6 {[%clk 0:00:11.8]} 40. Qd2
{[%clk 0:00:12.7]} 40... Rxa3 {[%clk 0:00:10.8]} 41. Qc2 {[%clk 0:00:10.3]}
41... Qd4 {[%clk 0:00:07]} 42. Qe2+ {[%clk 0:00:09.8]} 42... Qe4 {[%clk
0:00:06.2]} 43. Qb5 {[%clk 0:00:06.1]} 43... Ra2 {[%clk 0:00:05.1]} 44. Qf1
{[%clk 0:00:04.1]} 44... Rb2 {[%clk 0:00:03.9]} 45. Rh4 {[%clk 0:00:03.2]} 45...
Qe2 {[%clk 0:00:02.8]} 46. Qxe2+ {[%clk 0:00:03.3]} 46... Rxe2 {[%clk
0:00:03.7]} 47. Kg2 {[%clk 0:00:04]} 47... Rb2 {[%clk 0:00:04.4]} 48. Rd4 {[%clk
0:00:03.5]} 48... Ke5 {[%clk 0:00:04.5]} 49. Rf4 {[%clk 0:00:02.9]} 49... d5
{[%clk 0:00:04.8]} 50. h4 {[%clk 0:00:03.1]} 50... d4 {[%clk 0:00:04.9]} 51. h5
{[%clk 0:00:03.8]} 51... Rxb4 {[%clk 0:00:04.3]} 52. h6 {[%clk 0:00:04.5]} 52...
Rb8 {[%clk 0:00:04.9]} 53. Rh4 {[%clk 0:00:04.8]} 53... Rh8 {[%clk 0:00:05.4]}
54. Kf3 {[%clk 0:00:05.3]} 54... Kd5 {[%clk 0:00:05.8]} 55. Rh5 {[%clk
0:00:05.3]} 55... e6 {[%clk 0:00:06]} 56. g4 {[%clk 0:00:05]} 56... Kc4 {[%clk
0:00:04.3]} 57. gxf5 {[%clk 0:00:05.4]} 57... e5 {[%clk 0:00:04.9]} 58. Ke4
{[%clk 0:00:05.1]} 58... d3 {[%clk 0:00:05.4]} 59. Rh1 {[%clk 0:00:04.9]} 59...
Rd8 {[%clk 0:00:03.6]} 60. Ke3 {[%clk 0:00:04.7]} 60... d2 {[%clk 0:00:04]} 61.
Ke2 {[%clk 0:00:05.2]} 61... Kc3 {[%clk 0:00:04.6]} 62. Kd1 {[%clk 0:00:05.6]}
62... Rh8 {[%clk 0:00:05.5]} 63. Rh3+ {[%clk 0:00:05.6]} 63... Kd4 {[%clk
0:00:05.1]} 64. Kxd2 {[%clk 0:00:06.1]} 64... Ke4 {[%clk 0:00:05.8]} 65. Rh5
{[%clk 0:00:06.5]} 65... Kf4 {[%clk 0:00:06.3]} 66. Kd3 {[%clk 0:00:06.6]} 66...
Kg4 {[%clk 0:00:06.9]} 67. Rh1 {[%clk 0:00:07.2]} 67... Kxf5 {[%clk 0:00:07.7]}
68. Kc4 {[%clk 0:00:07.9]} 68... Rh7 {[%clk 0:00:08.1]} 69. Kd5 {[%clk
0:00:08.1]} 69... Kg5 {[%clk 0:00:07.6]} 70. Ke6 {[%clk 0:00:08.3]} 70... e4
{[%clk 0:00:05.6]} 71. Rg1+ {[%clk 0:00:07.9]} 71... Kf4 {[%clk 0:00:05.9]} 72.
Rg6 {[%clk 0:00:07.3]} 72... f5 {[%clk 0:00:05.5]} 73. Kf6 {[%clk 0:00:07.8]}
73... Rh8 {[%clk 0:00:05]} 74. Kg7 {[%clk 0:00:07.6]} 74... Re8 {[%clk
0:00:03.9]} 75. h7 {[%clk 0:00:07.5]} 75... Kf3 {[%clk 0:00:04.3]} 76. Rf6
{[%clk 0:00:07.6]} 76... Kxf2 {[%clk 0:00:02.9]} 77. Rxf5+ {[%clk 0:00:07.2]}
77... Ke2 {[%clk 0:00:02.7]} 78. Re5 {[%clk 0:00:03.7]} 78... Re6 {[%clk
0:00:02.4]} 79. h8=Q {[%clk 0:00:04.4]} 79... Rxe5 {[%clk 0:00:02.5]} 80. Qh2+
{[%clk 0:00:04.7]} 80... Kd3 {[%clk 0:00:02.6]} 81. Qxe5 {[%clk 0:00:05.3]} 1-0

[Event "Early-Titled-Tuesday-Blitz-September-12-2023"]
[Site "Chess.com"]
[Date "2023.09.12"]
[Round "4"]
[White "Chessmissile07"]
[Black "MBA_CHESS_2021"]
[Result "0-1"]
[WhiteElo "2873"]
[BlackElo "2144"]
[TimeControl "180+1"]
[EndTime "8:40:11 PDT"]
[Termination "MBA_CHESS_2021 won by checkmate"]

1. e4 {[%clk 0:03:00.9]} 1... e5 {[%clk 0:02:49.2]} 2. Nf3 {[%clk 0:03:00.8]}
2... Nc6 {[%clk 0:02:48.7]} 3. Bc4 {[%clk 0:03:01.4]} 3... Nf6 {[%clk
0:02:46.1]} 4. O-O {[%clk 0:03:01.3]} 4... Be7 {[%clk 0:02:44.6]} 5. d4 {[%clk
0:03:00.7]} 5... d6 {[%clk 0:02:40.5]} 6. dxe5 {[%clk 0:03:00.4]} 6... Nxe5
{[%clk 0:02:40.3]} 7. Nxe5 {[%clk 0:03:00.4]} 7... dxe5 {[%clk 0:02:40.5]} 8.
Qxd8+ {[%clk 0:03:01.3]} 8... Bxd8 {[%clk 0:02:40.5]} 9. f3 {[%clk 0:03:01.6]}
9... O-O {[%clk 0:02:40.2]} 10. Be3 {[%clk 0:03:01.8]} 10... Be7 {[%clk
0:02:38.2]} 11. a4 {[%clk 0:03:01.6]} 11... Bd7 {[%clk 0:02:36.3]} 12. Rd1
{[%clk 0:02:59.8]} 12... Bc6 {[%clk 0:02:36]} 13. Nc3 {[%clk 0:02:59.5]} 13...
a6 {[%clk 0:02:32.7]} 14. Kf2 {[%clk 0:02:58.2]} 14... Rfd8 {[%clk 0:02:31.6]}
15. Nd5 {[%clk 0:02:56.2]} 15... Nxd5 {[%clk 0:02:25]} 16. exd5 {[%clk
0:02:56.2]} 16... Be8 {[%clk 0:02:22.5]} 17. a5 {[%clk 0:02:53.2]} 17... Bd6
{[%clk 0:02:21.6]} 18. c3 {[%clk 0:02:53]} 18... f5 {[%clk 0:02:19.2]} 19. b4
{[%clk 0:02:52.6]} 19... f4 {[%clk 0:02:16.8]} 20. Bc1 {[%clk 0:02:36.8]} 20...
g5 {[%clk 0:02:15.5]} 21. Ra2 {[%clk 0:02:36.7]} 21... Bg6 {[%clk 0:02:14.1]}
22. Re2 {[%clk 0:02:36.6]} 22... Kg7 {[%clk 0:02:12.9]} 23. Bb2 {[%clk
0:02:35.4]} 23... Kf8 {[%clk 0:01:59.8]} 24. Bd3 {[%clk 0:02:35.2]} 24... Kg7
{[%clk 0:01:54]} 25. Bxg6 {[%clk 0:02:33.6]} 25... Kxg6 {[%clk 0:01:54]} 26. Re4
{[%clk 0:02:34.3]} 26... Kf5 {[%clk 0:01:52.4]} 27. g4+ {[%clk 0:02:30.3]} 27...
fxg3+ {[%clk 0:01:51.8]} 28. hxg3 {[%clk 0:02:30.5]} 28... h5 {[%clk 0:01:52.2]}
29. Rh1 {[%clk 0:02:20]} 29... Kg6 {[%clk 0:01:50.4]} 30. Bc1 {[%clk 0:01:42.1]}
30... Rf8 {[%clk 0:01:44.5]} 31. c4 {[%clk 0:01:32.1]} 31... g4 {[%clk
0:01:29.9]} 32. c5 {[%clk 0:01:30.5]} 32... Rxf3+ {[%clk 0:01:28.7]} 33. Kg2
{[%clk 0:01:30.9]} 33... Raf8 {[%clk 0:01:22.9]} 34. Be3 {[%clk 0:01:29.7]}
34... Be7 {[%clk 0:00:53.2]} 35. Rxe5 {[%clk 0:01:30]} 35... Bf6 {[%clk
0:00:52]} 36. Re6 {[%clk 0:01:30.3]} 36... c6 {[%clk 0:00:41.5]} 37. Rd1 {[%clk
0:00:30.5]} 37... cxd5 {[%clk 0:00:38.6]} 38. Rxd5 {[%clk 0:00:29.4]} 38... Kf7
{[%clk 0:00:31.3]} 39. Re4 {[%clk 0:00:27.8]} 39... Kg6 {[%clk 0:00:23.9]} 40.
Rd6 {[%clk 0:00:20.8]} 40... Kf5 {[%clk 0:00:22.6]} 41. Rf4+ {[%clk 0:00:20.3]}
41... Rxf4 {[%clk 0:00:22.6]} 42. Bxf4 {[%clk 0:00:21.2]} 42... Re8 {[%clk
0:00:21.7]} 43. Rd7 {[%clk 0:00:16.3]} 43... Re2+ {[%clk 0:00:21.1]} 44. Kf1
{[%clk 0:00:16.4]} 44... Rb2 {[%clk 0:00:21.1]} 45. Rxb7 {[%clk 0:00:16.6]}
45... Ke4 {[%clk 0:00:21.3]} 46. c6 {[%clk 0:00:13.9]} 46... Bd4 {[%clk
0:00:20.1]} 47. c7 {[%clk 0:00:06.5]} 47... Kf3 {[%clk 0:00:19.3]} 48. Ke1
{[%clk 0:00:06.3]} 48... Rc2 {[%clk 0:00:17.5]} 49. Rb8 {[%clk 0:00:06.1]} 49...
Be3 {[%clk 0:00:15.6]} 50. Bxe3 {[%clk 0:00:04.5]} 50... Rxc7 {[%clk 0:00:14.9]}
51. Bd2 {[%clk 0:00:02.6]} 51... Re7+ {[%clk 0:00:13]} 52. Kf1 {[%clk
0:00:02.1]} 52... Kxg3 {[%clk 0:00:12.8]} 53. Rb6 {[%clk 0:00:01.5]} 53... h4
{[%clk 0:00:12.3]} 54. Rxa6 {[%clk 0:00:01.4]} 54... h3 {[%clk 0:00:12.5]} 55.
Rb6 {[%clk 0:00:01.3]} 55... h2 {[%clk 0:00:12.2]} 56. Rh6 {[%clk 0:00:01.8]}
56... Rf7+ {[%clk 0:00:10.3]} 57. Ke2 {[%clk 0:00:02.4]} 57... Kg2 {[%clk
0:00:10.3]} 58. Be3 {[%clk 0:00:02.6]} 58... g3 {[%clk 0:00:10.2]} 59. a6 {[%clk
0:00:02.9]} 59... Rf1 {[%clk 0:00:09.5]} 60. a7 {[%clk 0:00:02.4]} 60... Ra1
{[%clk 0:00:10.1]} 61. b5 {[%clk 0:00:02.7]} 61... Ra2+ {[%clk 0:00:10]} 62. Kd3
{[%clk 0:00:02.8]} 62... Ra3+ {[%clk 0:00:10.3]} 63. Ke4 {[%clk 0:00:03]} 63...
Ra4+ {[%clk 0:00:10.5]} 64. Bd4 {[%clk 0:00:03.5]} 64... Kf1 {[%clk 0:00:09.3]}
65. b6 {[%clk 0:00:03.7]} 65... g2 {[%clk 0:00:09.4]} 66. Rf6+ {[%clk
0:00:02.4]} 66... Ke2 {[%clk 0:00:08.7]} 67. Rf2+ {[%clk 0:00:01.8]} 67... Ke1
{[%clk 0:00:09]} 68. Rxg2 {[%clk 0:00:02.5]} 68... h1=Q {[%clk 0:00:09.4]} 69.
Kf3 {[%clk 0:00:02.5]} 69... Ra3+ {[%clk 0:00:08.9]} 70. Be3 {[%clk 0:00:02.5]}
70... Rxe3+ {[%clk 0:00:08.8]} 71. Kxe3 {[%clk 0:00:03.2]} 71... Qxg2 {[%clk
0:00:09.2]} 72. Kd4 {[%clk 0:00:04.1]} 72... Qc6 {[%clk 0:00:08.8]} 73. Ke5
{[%clk 0:00:04.2]} 73... Qb5+ {[%clk 0:00:08.3]} 74. Kd6 {[%clk 0:00:04.6]}
74... Qxb6+ {[%clk 0:00:08.5]} 75. Kd7 {[%clk 0:00:05]} 75... Qxa7+ {[%clk
0:00:09.1]} 76. Kd6 {[%clk 0:00:05.8]} 76... Qa5 {[%clk 0:00:09.1]} 77. Ke6
{[%clk 0:00:06.1]} 77... Ke2 {[%clk 0:00:09.9]} 78. Kf6 {[%clk 0:00:06.3]} 78...
Ke3 {[%clk 0:00:10.8]} 79. Ke6 {[%clk 0:00:07]} 79... Ke4 {[%clk 0:00:11.7]} 80.
Kf6 {[%clk 0:00:07.6]} 80... Qe5+ {[%clk 0:00:11.9]} 81. Kf7 {[%clk 0:00:07.9]}
81... Qd6 {[%clk 0:00:11.9]} 82. Kg7 {[%clk 0:00:07.8]} 82... Kf5 {[%clk
0:00:11.2]} 83. Kh7 {[%clk 0:00:08.3]} 83... Kg5 {[%clk 0:00:10.3]} 84. Kh8
{[%clk 0:00:08.4]} 84... Qe7 {[%clk 0:00:09.7]} 85. Kg8 {[%clk 0:00:09.1]} 85...
Kg6 {[%clk 0:00:10.3]} 86. Kh8 {[%clk 0:00:08.8]} 86... Qh7# {[%clk 0:00:10.7]}
0-1